lending/lending_fUSD_20250121
["ID","MTS","AMOUNT","RATE_DAILY","PERIOD"]
[349768730,1737418246820,-500.0,0.00020619,2]
[349768731,1737418246838,-500.0,0.00020619,2]
[349768732,1737418246847,-500.0,0.00020619,2]
[349768733,1737418246856,-500.0,0.00020619,2]
[349768734,1737418246866,-500.0,0.00020619,2]
[349768735,1737418246875,-500.0,0.00020619,2]
[349768736,1737418246884,-500.0,0.00020619,2]
[349768737,1737418246894,-500.0,0.00020619,2]
[349768738,1737418246904,-500.0,0.00020619,2]
[349768739,1737418246913,-500.0,0.00020619,2]
[349768740,1737418246923,-500.0,0.00020619,2]
[349768741,1737418246932,-500.0,0.00020619,2]
[349768742,1737418246942,-500.0,0.00020619,2]
[349768743,1737418246953,-500.0,0.00020619,2]
[349768744,1737418246963,-500.0,0.00020619,2]
[349768745,1737418246972,-500.0,0.00020619,2]
[349768746,1737418246982,-500.0,0.00020619,2]
[349768747,1737418246991,-500.0,0.00020619,2]
[349768748,1737418247001,-591.26,0.00020619,2]
[349768749,1737418247010,-500.0,0.00020619,2]
[349768750,1737418247020,-506.62,0.00020619,2]
[349768751,1737418247029,-538.4,0.00020619,2]
[349768752,1737418247039,-637.21,0.00020619,2]
[349768753,1737418247048,-504.65,0.00020619,2]
[349768754,1737418247057,-500.0,0.00020619,2]
[349768755,1737418247066,-1861.44,0.00020619,2]
[349768756,1737418247080,-703.6,0.00020619,2]
[349768757,1737418247089,-1188.94,0.00020619,2]
[349768758,1737418247099,-500.0,0.00020619,2]
[349768759,1737418247108,-500.0,0.00020619,2]
[349768760,1737418247118,-699.34,0.00020619,2]
[349768761,1737418247128,-500.0,0.00020619,2]
[349768762,1737418247137,-1425.53,0.00020619,2]
[349768763,1737418247146,-500.0,0.00020619,2]
[349768764,1737418247156,-642.61,0.00020619,2]
[349768765,1737418247165,-802.3,0.00020619,2]
[349768766,1737418247174,-491.41081765,0.00020619,2]
[349768767,1737418247184,-605.56,0.00020619,2]
[349768768,1737418247194,-500.0,0.00020619,2]
[349768769,1737418247204,-664.27,0.00020619,2]
[349768770,1737418247214,-500.0,0.00020619,2]
[349768771,1737418247223,-500.0,0.00020619,2]
[349768772,1737418247233,-500.0,0.00020619,2]
[349768773,1737418247243,-730.71,0.00020619,2]
[349768774,1737418247252,-500.0,0.00020619,2]
[349768775,1737418247262,-631.69322276,0.00020619,2]
[349768776,1737418247272,-500.0,0.00020619,2]
[349768777,1737418247282,-500.0,0.00020619,2]
[349768778,1737418247291,-500.0,0.00020619,2]
[349768779,1737418247300,-500.0,0.00020619,2]
[349768780,1737418247310,-500.0,0.00020619,2]
[349768781,1737418247319,-500.0,0.0002062,2]
[349768782,1737418247333,-500.0,0.0002062,2]
[349768783,1737418247342,-500.0,0.0002062,2]
[349768784,1737418247351,-500.0,0.0002062,2]
[349768785,1737418247361,-500.0,0.0002062,2]
[349768786,1737418247370,-500.0,0.0002062,2]
[349768787,1737418247380,-500.0,0.0002062,2]
[349768788,1737418247389,-500.0,0.0002062,2]
[349768789,1737418247399,-428.2483381,0.0002062,2]
[349768790,1737418247408,-500.0,0.0002062,2]
[349768791,1737418247419,-500.0,0.0002062,2]
[349768792,1737418247428,-500.0,0.0002062,2]
[349768793,1737418247438,-500.0,0.0002062,2]
[349768794,1737418247447,-500.0,0.0002062,2]
[349768795,1737418247456,-500.0,0.0002062,2]
[349768796,1737418247466,-500.0,0.0002062,2]
[349768797,1737418247475,-703.05,0.0002062,2]
[349768798,1737418247485,-500.0,0.0002062,2]
[349768799,1737418247495,-500.0,0.0002062,2]
[349768800,1737418247505,-621.07,0.0002062,2]
[349768801,1737418247516,-1146.45,0.0002062,2]
[349768802,1737418247528,-500.0,0.0002062,2]
[349768803,1737418247539,-251.293089,0.0002062,2]
[349768804,1737418247549,-500.0,0.0002062,2]
[349768805,1737418247559,-817.86,0.0002062,2]
[349768806,1737418247569,-500.0,0.0002062,2]
[349768807,1737418247583,-500.0,0.0002062,2]
[349768808,1737418247592,-1131.27,0.0002062,2]
[349768809,1737418247605,-156.45728,0.0002062,2]
[349768810,1737418247615,-500.0,0.0002062,2]
[349768811,1737418247624,-500.0,0.0002062,2]
[349768812,1737418247634,-801.7,0.0002062,2]
[349768813,1737418247643,-500.0,0.0002062,2]
[349768814,1737418247653,-444.24,0.0002062,2]
[349768815,1737418247662,-1535.42,0.0002062,2]
[349768816,1737418247671,-830.37,0.0002062,2]
[349768817,1737418247681,-829.35,0.0002062,2]
[349768818,1737418247691,-514.18,0.0002062,2]
[349768819,1737418247700,-1187.21,0.0002062,2]
[349768820,1737418247710,-500.0,0.0002062,2]
[349768821,1737418247719,-570.16,0.0002062,2]
[349768822,1737418247728,-703.91,0.0002062,2]
[349768823,1737418247737,-1413.53,0.0002062,2]
[349768824,1737418247746,-550.62,0.0002062,2]
[349768825,1737418247755,-894.6,0.0002062,2]
[349768826,1737418247765,-500.0,0.00020621,2]
[349768827,1737418247774,-258.06980835,0.00020636,2]
[349768828,1737418247783,-1000.0,0.00020737,2]
[349768829,1737418247793,-53579.83411439,0.00020755,2]
[349768830,1737418247802,-530.13,0.00020794,2]
[349768831,1737418247811,-517.52,0.00020794,2]
[349768832,1737418247821,-500.0,0.00020794,2]
[349768833,1737418247833,-657.88,0.00020794,2]
[349768834,1737418247843,-1011.35,0.00020794,2]
[349768835,1737418247851,-726.57,0.00020794,2]
[349768836,1737418247860,-1153.79,0.00020794,2]
[349768837,1737418247870,-573.65,0.00020794,2]
[349768838,1737418247879,-910.43,0.00020794,2]
[349768839,1737418247888,-794.24,0.00020794,2]
[349768840,1737418247897,-500.0,0.00020794,2]
[349768841,1737418247907,-500.0,0.00020794,2]
[349768842,1737418247915,-1131.13,0.00020794,2]
[349768843,1737418247924,-500.0,0.00020794,2]
[349768844,1737418247933,-1391.68,0.00020794,2]
[349768845,1737418247943,-500.0,0.00020794,2]
[349768846,1737418247952,-500.0,0.00020794,2]
[349768847,1737418247999,-1472.73,0.00020794,2]
[349768848,1737418248009,-583.24,0.00020794,2]
[349768849,1737418248018,-500.0,0.00020794,2]
[349768850,1737418248028,-500.0,0.00020794,2]
[349768851,1737418248037,-1093.55,0.00020794,2]
[349768852,1737418248047,-500.0,0.0002082,2]
[349768853,1737418248056,-500.0,0.0002082,2]
[349768854,1737418248065,-500.0,0.0002082,2]
[349768855,1737418248076,-500.0,0.0002082,2]
[349768856,1737418248086,-696.22,0.0002082,2]
[349768857,1737418248096,-583.13,0.0002082,2]
[349768858,1737418248106,-500.0,0.0002082,2]
[349768859,1737418248115,-500.0,0.0002082,2]
[349768860,1737418248125,-1186.32,0.0002082,2]
[349768861,1737418248135,-2319.64,0.0002082,2]
[349768862,1737418248144,-500.0,0.0002082,2]
[349768863,1737418248154,-500.0,0.0002082,2]
[349768864,1737418248164,-500.0,0.0002082,2]
[349768865,1737418248174,-500.0,0.0002082,2]
[349768866,1737418248183,-500.0,0.0002082,2]
[349768867,1737418248193,-1126.99,0.0002082,2]
[349768868,1737418248203,-1444.67,0.0002082,2]
[349768869,1737418248212,-500.0,0.0002082,2]
[349768870,1737418248222,-531.88,0.0002082,2]
[349768871,1737418248231,-617.28,0.0002082,2]
[349768872,1737418248241,-600.33,0.0002082,2]
[349768873,1737418248250,-1768.27,0.0002082,2]
[349768874,1737418248260,-500.0,0.0002082,2]
[349768875,1737418248269,-883.44,0.0002082,2]
[349768876,1737418248278,-764.18,0.0002082,2]
[349768877,1737418248288,-914.35,0.0002082,2]
[349768878,1737418248297,-258.06980835,0.00020889,2]
[349768879,1737418248307,-500.0,0.00020893,2]
[349768880,1737418248316,-500.0,0.00020893,2]
[349768881,1737418248329,-695.21,0.00020893,2]
[349768882,1737418248338,-500.0,0.00020893,2]
[349768883,1737418248348,-500.0,0.00020893,2]
[349768884,1737418248357,-500.0,0.00020893,2]
[349768885,1737418248367,-500.0,0.00020893,2]
[349768886,1737418248376,-500.0,0.00020893,2]
[349768887,1737418248386,-500.0,0.00020893,2]
[349768888,1737418248396,-500.0,0.00020893,2]
[349768889,1737418248405,-500.0,0.00020893,2]
[349768890,1737418248416,-500.0,0.00020893,2]
[349768891,1737418248425,-500.0,0.00020893,2]
[349768892,1737418248435,-500.0,0.00020893,2]
[349768893,1737418248444,-500.0,0.00020893,2]
[349768894,1737418248453,-500.0,0.00020893,2]
[349768895,1737418248463,-500.0,0.00020893,2]
[349768896,1737418248472,-500.0,0.00020893,2]
[349768897,1737418248482,-500.0,0.00020893,2]
[349768898,1737418248491,-500.0,0.00020893,2]
[349768899,1737418248500,-500.0,0.00020893,2]
[349768900,1737418248510,-500.0,0.00020893,2]
[349768901,1737418248519,-591.26,0.00020893,2]
[349768902,1737418248531,-500.0,0.00020893,2]
[349768903,1737418248541,-506.62,0.00020893,2]
[349768904,1737418248550,-538.4,0.00020893,2]
[349768905,1737418248559,-637.21,0.00020893,2]
[349768906,1737418248568,-504.65,0.00020893,2]
[349768907,1737418248582,-500.0,0.00020893,2]
[349768908,1737418248591,-1861.44,0.00020893,2]
[349768909,1737418248601,-703.6,0.00020893,2]
[349768910,1737418248613,-1188.94,0.00020893,2]
[349768911,1737418248624,-500.0,0.00020893,2]
[349768912,1737418248634,-500.0,0.00020893,2]
[349768913,1737418248649,-699.34,0.00020893,2]
[349768914,1737418248659,-500.0,0.00020893,2]
[349768915,1737418248669,-1425.53,0.00020893,2]
[349768916,1737418248679,-500.0,0.00020893,2]
[349768917,1737418248689,-642.61,0.00020893,2]
[349768918,1737418248699,-802.3,0.00020893,2]
[349768919,1737418248708,-605.56,0.00020893,2]
[349768920,1737418248718,-500.0,0.00020893,2]
[349768921,1737418248728,-664.27,0.00020893,2]
[349768922,1737418248737,-500.0,0.00020893,2]
[349768923,1737418248746,-500.0,0.00020893,2]
[349768924,1737418248756,-500.0,0.00020893,2]
[349768925,1737418248765,-730.71,0.00020893,2]
[349768926,1737418248775,-500.0,0.00020893,2]
[349768927,1737418248785,-500.0,0.00020893,2]
[349768928,1737418248795,-500.0,0.00020893,2]
[349768929,1737418248804,-500.0,0.00020893,2]
[349768930,1737418248814,-500.0,0.00020893,2]
[349768931,1737418248828,-500.0,0.00020893,2]
[349768932,1737418248840,-500.0,0.00020894,2]
[349768933,1737418248850,-500.0,0.00020894,2]
[349768934,1737418248859,-500.0,0.00020894,2]
[349768935,1737418248869,-500.0,0.00020894,2]
[349768936,1737418248879,-500.0,0.00020894,2]
[349768937,1737418248891,-500.0,0.00020894,2]
[349768938,1737418248909,-500.0,0.00020894,2]
[349768939,1737418248920,-500.0,0.00020894,2]
[349768940,1737418248931,-500.0,0.00020894,2]
[349768941,1737418248941,-500.0,0.00020894,2]
[349768942,1737418248952,-500.0,0.00020894,2]
[349768943,1737418248962,-500.0,0.00020894,2]
[349768944,1737418248972,-315.01407066,0.00020894,2]
[349768945,1737418248982,-500.0,0.00020894,2]
[349768946,1737418248991,-500.0,0.00020894,2]
[349768947,1737418249007,-703.05,0.00020894,2]
[349768948,1737418249017,-500.0,0.00020894,2]
[349768949,1737418249028,-500.0,0.00020894,2]
[349768950,1737418249038,-621.07,0.00020894,2]
[349768951,1737418249047,-1146.45,0.00020894,2]
[349768952,1737418249057,-500.0,0.00020894,2]
[349768953,1737418249067,-251.293089,0.00020894,2]
[349768954,1737418249080,-500.0,0.00020894,2]
[349768955,1737418249090,-817.86,0.00020894,2]
[349768956,1737418249100,-500.0,0.00020894,2]
[349768957,1737418249110,-500.0,0.00020894,2]
[349768958,1737418249119,-1131.27,0.00020894,2]
[349768959,1737418249129,-156.45728,0.00020894,2]
[349768960,1737418249140,-500.0,0.00020894,2]
[349768961,1737418249150,-500.0,0.00020894,2]
[349768962,1737418249160,-801.7,0.00020894,2]
[349768963,1737418249169,-500.0,0.00020894,2]
[349768964,1737418249179,-1535.42,0.00020894,2]
[349768965,1737418249188,-830.37,0.00020894,2]
[349768966,1737418249199,-829.35,0.00020894,2]
[349768967,1737418249210,-514.18,0.00020894,2]
[349768968,1737418249222,-1187.21,0.00020894,2]
[349768969,1737418249232,-500.0,0.00020894,2]
[349768970,1737418249242,-570.16,0.00020894,2]
[349768971,1737418249253,-703.91,0.00020894,2]
[349768972,1737418249263,-1413.53,0.00020894,2]
[349768973,1737418249273,-550.62,0.00020894,2]
[349768974,1737418249283,-894.6,0.00020894,2]
[349768975,1737418249294,-500.0,0.00020895,2]
[349768976,1737418249304,-161.151,0.000209,2]
[349768977,1737418249315,-919.01,0.00020949,2]
[349768978,1737418249326,-833.08,0.00020986,30]
[349768979,1737418249336,-700.0,0.00021,2]
[349768980,1737418249347,-53579.83411439,0.00021041,2]
[349768981,1737418249357,-530.13,0.00021068,2]
[349768982,1737418249367,-517.52,0.00021068,2]
[349768983,1737418249377,-500.0,0.00021068,2]
[349768984,1737418249388,-657.88,0.00021068,2]
[349768985,1737418249397,-1011.35,0.00021068,2]
[349768986,1737418249407,-726.57,0.00021068,2]
[349768987,1737418249418,-1153.79,0.00021068,2]
[349768988,1737418249428,-573.65,0.00021068,2]
[349768989,1737418249438,-910.43,0.00021068,2]
[349768990,1737418249447,-794.24,0.00021068,2]
[349768991,1737418249457,-500.0,0.00021068,2]
[349768992,1737418249468,-500.0,0.00021068,2]
[349768993,1737418249479,-1131.13,0.00021068,2]
[349768994,1737418249488,-500.0,0.00021068,2]
[349768995,1737418249499,-1391.68,0.00021068,2]
[349768996,1737418249509,-475.92933349,0.00021068,2]
[349768997,1737418249523,-500.0,0.00021068,2]
[349768998,1737418249533,-1472.73,0.00021068,2]
[349768999,1737418249543,-583.24,0.00021068,2]
[349769000,1737418249553,-500.0,0.00021068,2]
[349769001,1737418249565,-158.50219715,0.00021068,2]
[349769002,1737418249575,-1093.55,0.00021068,2]
[349769003,1737418249584,-500.0,0.00021094,2]
[349769004,1737418249594,-412.9,0.00021094,2]
[349769005,1737418249604,-500.0,0.00021094,2]
[349769006,1737418249614,-500.0,0.00021094,2]
[349769007,1737418249624,-696.22,0.00021094,2]
[349769008,1737418249634,-583.13,0.00021094,2]
[349769009,1737418249646,-500.0,0.00021094,2]
[349769010,1737418249655,-500.0,0.00021094,2]
[349769011,1737418249665,-1186.32,0.00021094,2]
[349769012,1737418249674,-2319.64,0.00021094,2]
[349769013,1737418249684,-500.0,0.00021094,2]
[349769014,1737418249693,-500.0,0.00021094,2]
[349769015,1737418249703,-246.03,0.00021094,2]
[349769016,1737418249712,-500.0,0.00021094,2]
[349769017,1737418249722,-500.0,0.00021094,2]
[349769018,1737418249732,-1126.99,0.00021094,2]
[349769019,1737418249742,-1444.67,0.00021094,2]
[349769020,1737418249751,-500.0,0.00021094,2]
[349769021,1737418249760,-531.88,0.00021094,2]
[349769022,1737418249769,-617.28,0.00021094,2]
[349769023,1737418249778,-600.33,0.00021094,2]
[349769024,1737418249788,-1768.27,0.00021094,2]
[349769025,1737418249797,-500.0,0.00021094,2]
[349769026,1737418249807,-883.44,0.00021094,2]
[349769027,1737418249816,-764.18,0.00021094,2]
[349769028,1737418249826,-914.35,0.00021094,2]
[349769029,1737418249836,-258.06980835,0.00021142,2]
[349769030,1737418249846,-500.0,0.00021167,2]
[349769031,1737418249855,-500.0,0.00021167,2]
[349769032,1737418249865,-695.21,0.00021167,2]
[349769033,1737418249874,-500.0,0.00021167,2]
[349769034,1737418249884,-500.0,0.00021167,2]
[349769035,1737418249893,-500.0,0.00021167,2]
[349769036,1737418249903,-500.0,0.00021167,2]
[349769037,1737418249913,-500.0,0.00021167,2]
[349769038,1737418249922,-500.0,0.00021167,2]
[349769039,1737418249932,-500.0,0.00021167,2]
[349769040,1737418249941,-500.0,0.00021167,2]
[349769041,1737418249950,-500.0,0.00021167,2]
[349769042,1737418249959,-337.22525383,0.00021167,2]
[349769043,1737418249968,-500.0,0.00021167,2]
[349769044,1737418249978,-500.0,0.00021167,2]
[349769045,1737418249987,-500.0,0.00021167,2]
[349769046,1737418249997,-500.0,0.00021167,2]
[349769047,1737418250006,-500.0,0.00021167,2]
[349769048,1737418250016,-500.0,0.00021167,2]
[349769049,1737418250026,-500.0,0.00021167,2]
[349769050,1737418250035,-500.0,0.00021167,2]
[349769051,1737418250045,-500.0,0.00021167,2]
[349769052,1737418250054,-591.26,0.00021167,2]
[349769053,1737418250065,-506.62,0.00021167,2]
[349769054,1737418250087,-538.4,0.00021167,2]
[349769055,1737418250097,-637.21,0.00021167,2]
[349769056,1737418250107,-504.65,0.00021167,2]
[349769057,1737418250117,-500.0,0.00021167,2]
[349769058,1737418250126,-1861.44,0.00021167,2]
[349769059,1737418250135,-703.6,0.00021167,2]
[349769060,1737418250144,-1188.94,0.00021167,2]
[349769061,1737418250154,-500.0,0.00021167,2]
[349769062,1737418250163,-500.0,0.00021167,2]
[349769063,1737418250173,-699.34,0.00021167,2]
[349769064,1737418250182,-500.0,0.00021167,2]
[349769065,1737418250191,-1425.53,0.00021167,2]
[349769066,1737418250201,-500.0,0.00021167,2]
[349769067,1737418250211,-642.61,0.00021167,2]
[349769068,1737418250220,-802.3,0.00021167,2]
[349769069,1737418250232,-605.56,0.00021167,2]
[349769070,1737418250242,-591.92037735,0.00021167,2]
[349769071,1737418250252,-664.27,0.00021167,2]
[349769072,1737418250264,-500.0,0.00021167,2]
[349769073,1737418250274,-500.0,0.00021167,2]
[349769074,1737418250284,-500.0,0.00021167,2]
[349769075,1737418250294,-730.71,0.00021167,2]
[349769076,1737418250304,-500.0,0.00021167,2]
[349769077,1737418250315,-500.0,0.00021167,2]
[349769078,1737418250327,-500.0,0.00021167,2]
[349769079,1737418250337,-500.0,0.00021167,2]
[349769080,1737418250347,-500.0,0.00021167,2]
[349769081,1737418250356,-500.0,0.00021168,2]
[349769082,1737418250366,-500.0,0.00021168,2]
[349769083,1737418250375,-500.0,0.00021168,2]
[349769084,1737418250385,-549.9,0.00021168,2]
[349769085,1737418250395,-500.0,0.00021168,2]
[349769086,1737418250404,-500.0,0.00021168,2]
[349769087,1737418250414,-500.0,0.00021168,2]
[349769088,1737418250424,-500.0,0.00021168,2]
[349769089,1737418250434,-500.0,0.00021168,2]
[349769090,1737418250443,-500.0,0.00021168,2]
[349769091,1737418250457,-500.0,0.00021168,2]
[349769092,1737418250467,-500.0,0.00021168,2]
[349769093,1737418250476,-500.0,0.00021168,2]
[349769094,1737418250486,-500.0,0.00021168,2]
[349769095,1737418250495,-703.05,0.00021168,2]
[349769096,1737418250504,-500.0,0.00021168,2]
[349769097,1737418250514,-500.0,0.00021168,2]
[349769098,1737418250524,-621.07,0.00021168,2]
[349769099,1737418250537,-1146.45,0.00021168,2]
[349769100,1737418250546,-611.53538702,0.00021168,2]
[349769101,1737418250556,-251.293089,0.00021168,2]
[349769102,1737418250566,-500.0,0.00021168,2]
[349769103,1737418250578,-817.86,0.00021168,2]
[349769104,1737418250588,-500.0,0.00021168,2]
[349769105,1737418250597,-500.0,0.00021168,2]
[349769106,1737418250610,-1131.27,0.00021168,2]
[349769107,1737418250619,-156.45728,0.00021168,2]
[349769108,1737418250629,-500.0,0.00021168,2]
[349769109,1737418250638,-500.0,0.00021168,2]
[349769110,1737418250648,-801.7,0.00021168,2]
[349769111,1737418250657,-500.0,0.00021168,2]
[349769112,1737418250666,-1535.42,0.00021168,2]
[349769113,1737418250680,-830.37,0.00021168,2]
[349769114,1737418250689,-829.35,0.00021168,2]
[349769115,1737418250698,-514.18,0.00021168,2]
[349769116,1737418250707,-1187.21,0.00021168,2]
[349769117,1737418250717,-500.0,0.00021168,2]
[349769118,1737418250726,-570.16,0.00021168,2]
[349769119,1737418250736,-703.91,0.00021168,2]
[349769120,1737418250746,-1413.53,0.00021168,2]
[349769121,1737418250755,-550.62,0.00021168,2]
[349769122,1737418250764,-894.6,0.00021168,2]
[349769123,1737418250774,-604.77710044,0.00021169,2]
[349769124,1737418250783,-53579.83411439,0.00021328,2]
[349769125,1737418250793,-567.0,0.00021333,2]
[349769126,1737418250803,-1863.0,0.00021333,2]
[349769127,1737418250813,-907.0,0.00021333,2]
[349769128,1737418250823,-974.166,0.00021333,2]
[349769129,1737418250834,-537.0,0.00021333,2]
[349769130,1737418250844,-3983.0,0.00021333,2]
[349769131,1737418250853,-150.0,0.00021333,2]
[349769132,1737418250863,-3901.0,0.00021333,2]
[349769133,1737418250873,-1105.0,0.00021333,2]
[349769134,1737418250882,-530.13,0.00021342,2]
[349769135,1737418250892,-517.52,0.00021342,2]
[349769136,1737418250901,-500.0,0.00021342,2]
[349769137,1737418250911,-657.88,0.00021342,2]
[349769138,1737418250920,-1011.35,0.00021342,2]
[349769139,1737418250930,-726.57,0.00021342,2]
[349769140,1737418250940,-1153.79,0.00021342,2]
[349769141,1737418250950,-573.65,0.00021342,2]
[349769142,1737418250961,-910.43,0.00021342,2]
[349769143,1737418250971,-794.24,0.00021342,2]
[349769144,1737418250981,-500.0,0.00021342,2]
[349769145,1737418250990,-500.0,0.00021342,2]
[349769146,1737418251001,-1131.13,0.00021342,2]
[349769147,1737418251011,-500.0,0.00021342,2]
[349769148,1737418251021,-1391.68,0.00021342,2]
[349769149,1737418251031,-452.18004344,0.00021342,2]
[349769150,1737418251041,-1472.73,0.00021342,2]
[349769151,1737418251057,-583.24,0.00021342,2]
[349769152,1737418251067,-500.0,0.00021342,2]
[349769153,1737418251080,-1093.55,0.00021342,2]
[349769154,1737418251090,-500.0,0.00021368,2]
[349769155,1737418251100,-500.0,0.00021368,2]
[349769156,1737418251109,-500.0,0.00021368,2]
[349769157,1737418251119,-696.22,0.00021368,2]
[349769158,1737418251129,-583.13,0.00021368,2]
[349769159,1737418251139,-500.0,0.00021368,2]
[349769160,1737418251150,-500.0,0.00021368,2]
[349769161,1737418251160,-1186.32,0.00021368,2]
[349769162,1737418251169,-2319.64,0.00021368,2]
[349769163,1737418251179,-500.0,0.00021368,2]
[349769164,1737418251190,-500.0,0.00021368,2]
[349769165,1737418251199,-500.0,0.00021368,2]
[349769166,1737418251210,-500.0,0.00021368,2]
[349769167,1737418251220,-1126.99,0.00021368,2]
[349769168,1737418251230,-1444.67,0.00021368,2]
[349769169,1737418251240,-500.0,0.00021368,2]
[349769170,1737418251250,-531.88,0.00021368,2]
[349769171,1737418251259,-617.28,0.00021368,2]
[349769172,1737418251269,-600.33,0.00021368,2]
[349769173,1737418251279,-1768.27,0.00021368,2]
[349769174,1737418251288,-500.0,0.00021368,2]
[349769175,1737418251298,-883.44,0.00021368,2]
[349769176,1737418251308,-764.18,0.00021368,2]
[349769177,1737418251318,-914.35,0.00021368,2]
[349769178,1737418251330,-258.06980835,0.00021394,2]
[349769179,1737418251340,-500.0,0.00021441,2]
[349769180,1737418251351,-500.0,0.00021441,2]
[349769181,1737418251361,-695.21,0.00021441,2]
[349769182,1737418251371,-500.0,0.00021441,2]
[349769183,1737418251381,-500.0,0.00021441,2]
[349769184,1737418251391,-500.0,0.00021441,2]
[349769185,1737418251401,-291.89811375,0.00021441,2]
[349769186,1737418251411,-500.0,0.00021441,2]
[349769187,1737418251423,-500.0,0.00021441,2]
[349769188,1737418251433,-500.0,0.00021441,2]
[349769189,1737418251590,-500.0,0.00021441,2]
[349769190,1737418251602,-500.0,0.00021441,2]
[349769191,1737418251613,-500.0,0.00021441,2]
[349769192,1737418251622,-500.0,0.00021441,2]
[349769193,1737418251631,-500.0,0.00021441,2]
[349769194,1737418251640,-500.0,0.00021441,2]
[349769195,1737418251649,-500.0,0.00021441,2]
[349769196,1737418251658,-500.0,0.00021441,2]
[349769197,1737418251667,-500.0,0.00021441,2]
[349769198,1737418251677,-500.0,0.00021441,2]
[349769199,1737418251686,-500.0,0.00021441,2]
[349769200,1737418251695,-591.26,0.00021441,2]
[349769201,1737418251705,-506.62,0.00021441,2]
[349769202,1737418251714,-538.4,0.00021441,2]
[349769203,1737418251723,-637.21,0.00021441,2]
[349769204,1737418251732,-504.65,0.00021441,2]
[349769205,1737418251741,-500.0,0.00021441,2]
[349769206,1737418251750,-1861.44,0.00021441,2]
[349769207,1737418251759,-703.6,0.00021441,2]
[349769208,1737418251768,-1188.94,0.00021441,2]
[349769209,1737418251778,-500.0,0.00021441,2]
[349769210,1737418251787,-500.0,0.00021441,2]
[349769211,1737418251796,-699.34,0.00021441,2]
[349769212,1737418251806,-520.89,0.00021441,2]
[349769213,1737418251815,-1425.53,0.00021441,2]
[349769214,1737418251823,-500.0,0.00021441,2]
[349769215,1737418251835,-642.61,0.00021441,2]
[349769216,1737418251844,-802.3,0.00021441,2]
[349769217,1737418251853,-605.56,0.00021441,2]
[349769218,1737418251863,-664.27,0.00021441,2]
[349769219,1737418251873,-500.0,0.00021441,2]
[349769220,1737418251889,-500.0,0.00021441,2]
[349769221,1737418251899,-500.0,0.00021441,2]
[349769222,1737418251908,-730.71,0.00021441,2]
[349769223,1737418251918,-500.0,0.00021441,2]
[349769224,1737418251927,-182.28,0.00021441,2]
[349769225,1737418251936,-381.7771027,0.00021441,2]
[349769226,1737418251945,-500.0,0.00021441,2]
[349769227,1737418251955,-500.0,0.00021441,2]
[349769228,1737418251964,-500.0,0.00021442,2]
[349769229,1737418251973,-500.0,0.00021442,2]